[Event "Titled Tuesday Blitz July 4 Early 2023"]
[White "Besedes, Danilo"]
[Black "Indjic, Aleksandar"]
[WhiteFideId "946796"]
[BlackFideId "911925"]
[WhiteElo "2511"]
[BlackElo "2971"]
[Result "0-1"]
[Round "1"]
[TimeControl "180+2"]
[Date "2023.07.04"]
[WhiteClock "0:00:37"]
[BlackClock "0:01:08"]
[Board "22"]

1. Nf3 {[%clk 0:02:59]}  Nf6 {[%clk 0:02:56]} 2. g3 {[%clk 0:02:59]}  b5 {[%clk 0:02:55]} 3. Bg2 {[%clk 0:02:58]}  Bb7 {[%clk 0:02:55]} 4. O-O {[%clk 0:02:59]}  c5 {[%clk 0:02:55]} 5. b3 {[%clk 0:02:59]}  e6 {[%clk 0:02:52]} 6. Bb2 {[%clk 0:02:58]}  Be7 {[%clk 0:02:52]} 7. e3 {[%clk 0:02:55]}  O-O {[%clk 0:02:52]} 8. d4 {[%clk 0:02:55]}  cxd4 {[%clk 0:02:52]} 9. Nxd4 {[%clk 0:02:54]}  Bxg2 {[%clk 0:02:51]} 10. Kxg2 {[%clk 0:02:55]}  Qb6 {[%clk 0:02:50]} 11. Nd2 {[%clk 0:02:53]}  Nc6 {[%clk 0:02:49]} 12. c4 {[%clk 0:02:53]}  a6 {[%clk 0:02:48]} 13. Qe2 {[%clk 0:02:51]}  b4 {[%clk 0:02:44]} 14. Nxc6 {[%clk 0:02:48]}  Qxc6+ {[%clk 0:02:43]} 15. Qf3 {[%clk 0:02:48]}  Qxf3+ {[%clk 0:02:39]} 16. Kxf3 {[%clk 0:02:45]}  a5 {[%clk 0:02:39]} 17. Rfd1 {[%clk 0:02:41]}  Rfc8 {[%clk 0:02:35]} 18. Ne4 {[%clk 0:02:41]}  Nxe4 {[%clk 0:02:34]} 19. Kxe4 {[%clk 0:02:41]}  d6 {[%clk 0:02:34]} 20. a4 {[%clk 0:02:38]}  bxa3 {[%clk 0:02:25]} 21. Bxa3 {[%clk 0:02:38]}  Ra6 {[%clk 0:02:25]} 22. Rd3 {[%clk 0:02:38]}  g6 {[%clk 0:02:23]} 23. Kf3 {[%clk 0:02:35]}  Rcc6 {[%clk 0:02:22]} 24. Bc1 {[%clk 0:02:32]}  Bf6 {[%clk 0:02:17]} 25. Ra4 {[%clk 0:02:28]}  d5 {[%clk 0:02:17]} 26. Bd2 {[%clk 0:02:22]}  dxc4 {[%clk 0:02:17]} 27. bxc4 {[%clk 0:02:23]}  h5 {[%clk 0:02:16]} 28. h4 {[%clk 0:02:14]}  Kg7 {[%clk 0:02:13]} 29. Rxa5 {[%clk 0:02:11]}  Rxa5 {[%clk 0:02:13]} 30. Bxa5 {[%clk 0:02:12]}  Rxc4 {[%clk 0:02:13]} 31. Bb6 {[%clk 0:02:09]}  Be5 {[%clk 0:02:12]} 32. Rd2 {[%clk 0:02:07]}  Kf6 {[%clk 0:02:11]} 33. Bd8+ {[%clk 0:02:06]}  Kf5 {[%clk 0:02:11]} 34. Ke2 {[%clk 0:02:00]}  f6 {[%clk 0:02:04]} 35. Kf3 {[%clk 0:01:58]}  g5 {[%clk 0:02:02]} 36. hxg5 {[%clk 0:01:54]}  fxg5 {[%clk 0:02:03]} 37. Rd7 {[%clk 0:01:47]}  g4+ {[%clk 0:01:58]} 38. Ke2 {[%clk 0:01:42]}  Rc2+ {[%clk 0:01:57]} 39. Rd2 {[%clk 0:01:41]}  Rc8 {[%clk 0:01:55]} 40. Bb6 {[%clk 0:01:39]}  Ke4 {[%clk 0:01:55]} 41. Ra2 {[%clk 0:01:36]}  Rc4 {[%clk 0:01:54]} 42. Ba7 {[%clk 0:01:36]}  Bf6 {[%clk 0:01:52]} 43. Bb6 {[%clk 0:01:35]}  h4 {[%clk 0:01:25]} 44. gxh4 {[%clk 0:01:36]}  Bxh4 {[%clk 0:01:25]} 45. Ba7 {[%clk 0:01:32]}  Bf6 {[%clk 0:01:22]} 46. Bb8 {[%clk 0:01:32]}  Rb4 {[%clk 0:01:21]} 47. Bg3 {[%clk 0:01:32]}  Bc3 {[%clk 0:01:15]} 48. Bd6 {[%clk 0:01:31]}  Rb6 {[%clk 0:01:11]} 49. Bg3 {[%clk 0:01:30]}  Rb1 {[%clk 0:01:09]} 50. Ra4+ {[%clk 0:01:29]}  Bb4 {[%clk 0:01:09]} 51. Rxb4+ {[%clk 0:00:47]}  Rxb4 {[%clk 0:01:10]} 52. Kf1 {[%clk 0:00:42]}  Kf3 {[%clk 0:01:08]} 53. Kg1 {[%clk 0:00:42]}  Rb1+ {[%clk 0:01:08]} 54. Kh2 {[%clk 0:00:42]}  Rf1 {[%clk 0:01:08]} 55. Bh4 {[%clk 0:00:38]}  Rxf2+ {[%clk 0:01:08]} 56. Bxf2 {[%clk 0:00:37]}  Kxf2 {[%clk 0:01:08]} 0-1


[Site "https://www.chess.com"]

[Event "Titled Tuesday Blitz July 4 Early 2023"]
[White "Matlakov, Maxim"]
[Black "Belov, Alexei"]
[WhiteFideId "4168003"]
[BlackFideId "4128206"]
[WhiteElo "2938"]
[BlackElo "2509"]
[Result "1-0"]
[Round "1"]
[TimeControl "180+2"]
[Date "2023.07.04"]
[WhiteClock "0:01:26"]
[BlackClock "0:00:00"]
[Board "25"]

1. Nf3 {[%clk 0:02:58]}  d5 {[%clk 0:03:00]} 2. e3 {[%clk 0:02:58]}  Nf6 {[%clk 0:02:59]} 3. c4 {[%clk 0:02:59]}  e6 {[%clk 0:02:59]} 4. Nc3 {[%clk 0:02:59]}  Be7 {[%clk 0:03:00]} 5. b3 {[%clk 0:02:59]}  O-O {[%clk 0:03:00]} 6. Bb2 {[%clk 0:02:58]}  c5 {[%clk 0:03:00]} 7. cxd5 {[%clk 0:02:58]}  exd5 {[%clk 0:03:00]} 8. d4 {[%clk 0:02:58]}  Nc6 {[%clk 0:03:00]} 9. Be2 {[%clk 0:02:58]}  cxd4 {[%clk 0:03:00]} 10. Nxd4 {[%clk 0:02:58]}  Bc5 {[%clk 0:03:00]} 11. Nxc6 {[%clk 0:02:57]}  bxc6 {[%clk 0:03:01]} 12. O-O {[%clk 0:02:57]}  Bd6 {[%clk 0:03:01]} 13. Na4 {[%clk 0:02:56]}  Bd7 {[%clk 0:02:56]} 14. Rc1 {[%clk 0:02:55]}  Ne4 {[%clk 0:02:54]} 15. Nc3 {[%clk 0:02:47]}  Nxc3 {[%clk 0:02:45]} 16. Bxc3 {[%clk 0:02:46]}  Re8 {[%clk 0:02:45]} 17. Qd4 {[%clk 0:02:41]}  Be5 {[%clk 0:02:27]} 18. Qd2 {[%clk 0:02:41]}  Bd6 {[%clk 0:02:24]} 19. g3 {[%clk 0:02:39]}  Qe7 {[%clk 0:02:11]} 20. Bf3 {[%clk 0:02:29]}  Bh3 {[%clk 0:01:56]} 21. Rfe1 {[%clk 0:02:23]}  Bf5 {[%clk 0:01:47]} 22. Bg2 {[%clk 0:02:22]}  Be4 {[%clk 0:01:45]} 23. Qd4 {[%clk 0:02:19]}  f6 {[%clk 0:01:44]} 24. Bxe4 {[%clk 0:02:19]}  Qxe4 {[%clk 0:01:43]} 25. Qxe4 {[%clk 0:02:19]}  dxe4 {[%clk 0:01:27]} 26. Bd4 {[%clk 0:02:19]}  Rec8 {[%clk 0:01:24]} 27. Rc4 {[%clk 0:02:19]}  a5 {[%clk 0:01:19]} 28. Rec1 {[%clk 0:02:19]}  Ra6 {[%clk 0:01:18]} 29. g4 {[%clk 0:02:18]}  h5 {[%clk 0:01:10]} 30. h3 {[%clk 0:02:17]}  hxg4 {[%clk 0:01:10]} 31. hxg4 {[%clk 0:02:18]}  Ba3 {[%clk 0:00:55]} 32. R1c2 {[%clk 0:02:14]}  Kf7 {[%clk 0:00:28]} 33. Kg2 {[%clk 0:02:14]}  g6 {[%clk 0:00:26]} 34. Bc3 {[%clk 0:02:12]}  f5 {[%clk 0:00:26]} 35. Ra4 {[%clk 0:02:12]}  Be7 {[%clk 0:00:22]} 36. Rd2 {[%clk 0:02:10]}  Rc7 {[%clk 0:00:20]} 37. Rxa5 {[%clk 0:02:06]}  Rxa5 {[%clk 0:00:19]} 38. Bxa5 {[%clk 0:02:07]}  Ra7 {[%clk 0:00:20]} 39. Bb6 {[%clk 0:02:06]}  Ra6 {[%clk 0:00:18]} 40. Bd4 {[%clk 0:02:05]}  Ke6 {[%clk 0:00:18]} 41. gxf5+ {[%clk 0:02:05]}  gxf5 {[%clk 0:00:18]} 42. a4 {[%clk 0:02:06]}  c5 {[%clk 0:00:18]} 43. Bh8 {[%clk 0:02:00]}  Bd6 {[%clk 0:00:18]} 44. Bc3 {[%clk 0:01:56]}  Rb6 {[%clk 0:00:18]} 45. Rb2 {[%clk 0:01:56]}  Rb7 {[%clk 0:00:17]} 46. a5 {[%clk 0:01:56]}  Ra7 {[%clk 0:00:16]} 47. Ra2 {[%clk 0:01:55]}  Kd5 {[%clk 0:00:16]} 48. Kh3 {[%clk 0:01:50]}  Rh7+ {[%clk 0:00:13]} 49. Kg2 {[%clk 0:01:50]}  Ra7 {[%clk 0:00:13]} 50. Kf1 {[%clk 0:01:43]}  Kc6 {[%clk 0:00:13]} 51. Ke2 {[%clk 0:01:42]}  Kb5 {[%clk 0:00:13]} 52. Rd2 {[%clk 0:01:42]}  Bc7 {[%clk 0:00:13]} 53. Rd5 {[%clk 0:01:42]}  Bxa5 {[%clk 0:00:13]} 54. Bf6 {[%clk 0:01:34]}  Bb4 {[%clk 0:00:11]} 55. Rxf5 {[%clk 0:01:34]}  Ra2+ {[%clk 0:00:11]} 56. Kf1 {[%clk 0:01:34]}  Rd2 {[%clk 0:00:08]} 57. Rf4 {[%clk 0:01:34]}  Rd3 {[%clk 0:00:08]} 58. Rxe4 {[%clk 0:01:34]}  Rxb3 {[%clk 0:00:09]} 59. f4 {[%clk 0:01:34]}  c4 {[%clk 0:00:10]} 60. f5 {[%clk 0:01:34]}  c3 {[%clk 0:00:10]} 61. Bxc3 {[%clk 0:01:28]}  Rxc3 {[%clk 0:00:10]} 62. f6 {[%clk 0:01:27]}  Bc5 {[%clk 0:00:10]} 63. f7 {[%clk 0:01:26]}  Kc6 {[%clk 0:00:09]} 64. Re8 {[%clk 0:01:26]}  Kd5 {[%clk 0:00:09]} 65. Ke2 {[%clk 0:01:27]}  Rc4 {[%clk 0:00:06]} 66. Rc8 {[%clk 0:01:26]}  Bf8 {[%clk 0:00:03]} 67. Rxf8 {[%clk 0:01:26]}  Ke6 {[%clk 0:00:01]} 68. Kf3 {[%clk 0:01:25]}  Ra4 {[%clk 0:00:00]} 69. Rh8 {[%clk 0:01:26]} 1-0


[Site "https://www.chess.com"]

[Event "Titled Tuesday Blitz July 4 Early 2023"]
[White "Principe, Gerson"]
[Black "Shimanov, Aleksandr"]
[WhiteFideId "3804550"]
[BlackFideId "4198603"]
[WhiteElo "2508"]
[BlackElo "2930"]
[Result "1-0"]
[Round "1"]
[TimeControl "180+2"]
[Date "2023.07.04"]
[WhiteClock "0:00:14"]
[BlackClock "0:00:00"]
[Board "26"]

1. d4 {[%clk 0:02:58]}  d6 {[%clk 0:02:52]} 2. Nf3 {[%clk 0:02:57]}  g6 {[%clk 0:02:51]} 3. e3 {[%clk 0:02:57]}  Bg7 {[%clk 0:02:50]} 4. Be2 {[%clk 0:02:58]}  Nd7 {[%clk 0:02:50]} 5. O-O {[%clk 0:02:58]}  e5 {[%clk 0:02:50]} 6. c3 {[%clk 0:02:42]}  Ne7 {[%clk 0:02:49]} 7. b4 {[%clk 0:02:42]}  O-O {[%clk 0:02:48]} 8. Bb2 {[%clk 0:02:42]}  f5 {[%clk 0:02:47]} 9. c4 {[%clk 0:02:41]}  h6 {[%clk 0:02:42]} 10. Nc3 {[%clk 0:02:39]}  g5 {[%clk 0:02:42]} 11. dxe5 {[%clk 0:02:33]}  dxe5 {[%clk 0:02:42]} 12. c5 {[%clk 0:02:33]}  Kh8 {[%clk 0:02:36]} 13. Bc4 {[%clk 0:02:28]}  e4 {[%clk 0:02:33]} 14. Nd4 {[%clk 0:02:27]}  Ne5 {[%clk 0:02:33]} 15. Be2 {[%clk 0:02:26]}  c6 {[%clk 0:02:07]} 16. Qc2 {[%clk 0:02:22]}  Qe8 {[%clk 0:02:05]} 17. Rae1 {[%clk 0:02:00]}  N7g6 {[%clk 0:02:03]} 18. Nb1 {[%clk 0:01:19]}  g4 {[%clk 0:01:57]} 19. f4 {[%clk 0:01:08]}  exf3 {[%clk 0:01:54]} 20. gxf3 {[%clk 0:01:08]}  Nh4 {[%clk 0:01:39]} 21. f4 {[%clk 0:01:02]}  Neg6 {[%clk 0:01:36]} 22. Bd3 {[%clk 0:01:00]}  Ne7 {[%clk 0:01:32]} 23. Qf2 {[%clk 0:00:53]}  Qh5 {[%clk 0:01:31]} 24. Nd2 {[%clk 0:00:52]}  Nd5 {[%clk 0:01:30]} 25. a3 {[%clk 0:00:49]}  Bd7 {[%clk 0:01:29]} 26. Nc4 {[%clk 0:00:44]}  b6 {[%clk 0:01:15]} 27. Ne5 {[%clk 0:00:38]}  Qe8 {[%clk 0:01:12]} 28. Qxh4 {[%clk 0:00:33]}  bxc5 {[%clk 0:01:06]} 29. bxc5 {[%clk 0:00:33]}  Rb8 {[%clk 0:01:02]} 30. Ba1 {[%clk 0:00:33]}  Kg8 {[%clk 0:00:40]} 31. Nxd7 {[%clk 0:00:32]}  Qxd7 {[%clk 0:00:39]} 32. Qh5 {[%clk 0:00:31]}  Ne7 {[%clk 0:00:16]} 33. Bc4+ {[%clk 0:00:31]}  Kh7 {[%clk 0:00:16]} 34. Bd3 {[%clk 0:00:31]}  Kg8 {[%clk 0:00:15]} 35. Rd1 {[%clk 0:00:31]}  Qe8 {[%clk 0:00:11]} 36. Qh4 {[%clk 0:00:30]}  Nd5 {[%clk 0:00:11]} 37. Rfe1 {[%clk 0:00:30]}  Qg6 {[%clk 0:00:08]} 38. Qf2 {[%clk 0:00:28]}  Kh8 {[%clk 0:00:08]} 39. Kh1 {[%clk 0:00:27]}  Rbe8 {[%clk 0:00:08]} 40. Nc2 {[%clk 0:00:24]}  Bxa1 {[%clk 0:00:07]} 41. Rxa1 {[%clk 0:00:25]}  h5 {[%clk 0:00:07]} 42. Nd4 {[%clk 0:00:21]}  Qf6 {[%clk 0:00:07]} 43. Rad1 {[%clk 0:00:20]}  h4 {[%clk 0:00:07]} 44. Nxf5 {[%clk 0:00:19]}  g3 {[%clk 0:00:07]} 45. hxg3 {[%clk 0:00:18]}  hxg3 {[%clk 0:00:08]} 46. Qxg3 {[%clk 0:00:18]}  Rf7 {[%clk 0:00:09]} 47. Re2 {[%clk 0:00:17]}  Rh7+ {[%clk 0:00:05]} 48. Rh2 {[%clk 0:00:17]}  Rxh2+ {[%clk 0:00:02]} 49. Qxh2+ {[%clk 0:00:17]}  Kg8 {[%clk 0:00:03]} 50. Rg1+ {[%clk 0:00:17]}  Kf8 {[%clk 0:00:03]} 51. Qh7 {[%clk 0:00:15]}  Qf7 {[%clk 0:00:00]} 52. Qh8+ {[%clk 0:00:14]} 1-0


[Site "https://www.chess.com"]

[Event "Titled Tuesday Blitz July 4 Early 2023"]
[White "Chigaev, Maksim"]
[Black "Mattheii"]
[WhiteFideId "4108116"]
[WhiteElo "2928"]
[BlackElo "2508"]
[Result "1-0"]
[Round "1"]
[TimeControl "180+2"]
[Date "2023.07.04"]
[WhiteClock "0:00:10"]
[BlackClock "0:00:03"]
[Board "27"]

1. e4 {[%clk 0:02:58]}  c5 {[%clk 0:02:59]} 2. Nf3 {[%clk 0:02:56]}  Nc6 {[%clk 0:02:59]} 3. Nc3 {[%clk 0:02:55]}  d6 {[%clk 0:02:59]} 4. Bb5 {[%clk 0:02:54]}  Bd7 {[%clk 0:02:57]} 5. O-O {[%clk 0:02:54]}  Nf6 {[%clk 0:02:55]} 6. Bxc6 {[%clk 0:02:54]}  Bxc6 {[%clk 0:02:54]} 7. e5 {[%clk 0:02:55]}  dxe5 {[%clk 0:02:51]} 8. Nxe5 {[%clk 0:02:56]}  Qc7 {[%clk 0:02:47]} 9. Qe2 {[%clk 0:02:47]}  e6 {[%clk 0:02:42]} 10. Nb5 {[%clk 0:02:30]}  Bxb5 {[%clk 0:02:24]} 11. Qxb5+ {[%clk 0:02:29]}  Nd7 {[%clk 0:02:25]} 12. Nf3 {[%clk 0:02:06]}  a6 {[%clk 0:02:21]} 13. Qa4 {[%clk 0:02:01]}  Be7 {[%clk 0:02:13]} 14. Re1 {[%clk 0:02:00]}  O-O {[%clk 0:02:11]} 15. d3 {[%clk 0:02:00]}  Bf6 {[%clk 0:01:55]} 16. Bf4 {[%clk 0:01:48]}  Qc8 {[%clk 0:01:25]} 17. Rab1 {[%clk 0:01:42]}  Rd8 {[%clk 0:01:18]} 18. h4 {[%clk 0:01:39]}  Nb6 {[%clk 0:01:01]} 19. Qe4 {[%clk 0:01:39]}  Nd5 {[%clk 0:01:02]} 20. Bg5 {[%clk 0:01:39]}  h6 {[%clk 0:01:01]} 21. Bd2 {[%clk 0:01:39]}  Qc6 {[%clk 0:00:57]} 22. Qg4 {[%clk 0:01:37]}  Kh8 {[%clk 0:00:51]} 23. Ne5 {[%clk 0:01:34]}  Qc7 {[%clk 0:00:49]} 24. Qh5 {[%clk 0:01:26]}  Bxe5 {[%clk 0:00:44]} 25. Qxe5 {[%clk 0:01:27]}  Qxe5 {[%clk 0:00:43]} 26. Rxe5 {[%clk 0:01:28]}  Rac8 {[%clk 0:00:43]} 27. b3 {[%clk 0:01:06]}  b6 {[%clk 0:00:41]} 28. a4 {[%clk 0:01:05]}  a5 {[%clk 0:00:38]} 29. g4 {[%clk 0:00:58]}  Nb4 {[%clk 0:00:31]} 30. Rc1 {[%clk 0:00:58]}  Na2 {[%clk 0:00:26]} 31. Rb1 {[%clk 0:00:47]}  Nb4 {[%clk 0:00:26]} 32. Rb2 {[%clk 0:00:47]}  Nc6 {[%clk 0:00:25]} 33. Re4 {[%clk 0:00:46]}  Nd4 {[%clk 0:00:25]} 34. Kg2 {[%clk 0:00:46]}  Kg8 {[%clk 0:00:23]} 35. Re1 {[%clk 0:00:28]}  Rd5 {[%clk 0:00:23]} 36. Bc3 {[%clk 0:00:25]}  Rcd8 {[%clk 0:00:22]} 37. h5 {[%clk 0:00:25]}  Rg5 {[%clk 0:00:19]} 38. f3 {[%clk 0:00:18]}  Rgd5 {[%clk 0:00:19]} 39. Bd2 {[%clk 0:00:17]}  Nc6 {[%clk 0:00:17]} 40. Bf4 {[%clk 0:00:15]}  R8d7 {[%clk 0:00:16]} 41. Rbb1 {[%clk 0:00:14]}  Nd4 {[%clk 0:00:16]} 42. Rbc1 {[%clk 0:00:14]}  Nc6 {[%clk 0:00:14]} 43. Re4 {[%clk 0:00:12]}  e5 {[%clk 0:00:14]} 44. Bg3 {[%clk 0:00:12]}  f6 {[%clk 0:00:14]} 45. Rf1 {[%clk 0:00:11]}  Nd4 {[%clk 0:00:14]} 46. Rf2 {[%clk 0:00:12]}  Ne6 {[%clk 0:00:14]} 47. f4 {[%clk 0:00:10]}  Nxf4+ {[%clk 0:00:13]} 48. Bxf4 {[%clk 0:00:11]}  exf4 {[%clk 0:00:14]} 49. Rfxf4 {[%clk 0:00:11]}  Kf7 {[%clk 0:00:14]} 50. Kf3 {[%clk 0:00:11]}  R5d6 {[%clk 0:00:13]} 51. Rf5 {[%clk 0:00:12]}  Rd5 {[%clk 0:00:14]} 52. Kf4 {[%clk 0:00:11]}  Rxf5+ {[%clk 0:00:14]} 53. gxf5 {[%clk 0:00:12]}  Rd6 {[%clk 0:00:13]} 54. Kg4 {[%clk 0:00:09]}  Rc6 {[%clk 0:00:13]} 55. c3 {[%clk 0:00:08]}  Rd6 {[%clk 0:00:13]} 56. Re3 {[%clk 0:00:09]}  Rd5 {[%clk 0:00:13]} 57. Kf4 {[%clk 0:00:10]}  Rd7 {[%clk 0:00:13]} 58. Ke4 {[%clk 0:00:09]}  Rd8 {[%clk 0:00:12]} 59. d4 {[%clk 0:00:08]}  cxd4 {[%clk 0:00:12]} 60. cxd4 {[%clk 0:00:09]}  Ke7 {[%clk 0:00:13]} 61. Kd3+ {[%clk 0:00:09]}  Kd7 {[%clk 0:00:09]} 62. Kc4 {[%clk 0:00:07]}  Kc6 {[%clk 0:00:06]} 63. Re6+ {[%clk 0:00:07]}  Kb7 {[%clk 0:00:06]} 64. Re7+ {[%clk 0:00:05]}  Kc6 {[%clk 0:00:05]} 65. Rxg7 {[%clk 0:00:05]}  Kd6 {[%clk 0:00:04]} 66. Rg6 {[%clk 0:00:05]}  Rc8+ {[%clk 0:00:04]} 67. Kd3 {[%clk 0:00:05]}  Ke7 {[%clk 0:00:04]} 68. Rg7+ {[%clk 0:00:05]}  Kd6 {[%clk 0:00:04]} 69. Rf7 {[%clk 0:00:05]}  Rc1 {[%clk 0:00:04]} 70. Rxf6+ {[%clk 0:00:06]}  Kc7 {[%clk 0:00:05]} 71. Rxh6 {[%clk 0:00:06]}  Rd1+ {[%clk 0:00:05]} 72. Ke4 {[%clk 0:00:06]}  Rb1 {[%clk 0:00:05]} 73. f6 {[%clk 0:00:06]}  Re1+ {[%clk 0:00:05]} 74. Kf5 {[%clk 0:00:07]}  Rf1+ {[%clk 0:00:06]} 75. Kg6 {[%clk 0:00:07]}  Kd6 {[%clk 0:00:06]} 76. Kg7 {[%clk 0:00:07]}  Ke6 {[%clk 0:00:06]} 77. d5+ {[%clk 0:00:08]}  Kd7 {[%clk 0:00:05]} 78. f7 {[%clk 0:00:08]}  Ke7 {[%clk 0:00:05]} 79. d6+ {[%clk 0:00:09]}  Kd7 {[%clk 0:00:03]} 80. f8=Q {[%clk 0:00:10]} 1-0


[Site "https://www.chess.com"]

[Event "Titled Tuesday Blitz July 4 Early 2023"]
[White "Ronka, Erik"]
[Black "Xiong, Jeffery"]
[WhiteFideId "505080"]
[BlackFideId "2047640"]
[WhiteElo "2507"]
[BlackElo "2928"]
[Result "1/2-1/2"]
[Round "1"]
[TimeControl "180+2"]
[Date "2023.07.04"]
[WhiteClock "0:00:17"]
[BlackClock "0:01:04"]
[Board "28"]

1. e4 {[%clk 0:03:00]}  c5 {[%clk 0:02:59]} 2. Nf3 {[%clk 0:02:59]}  d6 {[%clk 0:03:00]} 3. d4 {[%clk 0:03:00]}  cxd4 {[%clk 0:03:01]} 4. Nxd4 {[%clk 0:03:01]}  Nf6 {[%clk 0:03:01]} 5. Nc3 {[%clk 0:03:01]}  a6 {[%clk 0:03:02]} 6. Be3 {[%clk 0:03:02]}  Nbd7 {[%clk 0:03:01]} 7. f3 {[%clk 0:03:01]}  h5 {[%clk 0:03:01]} 8. Qd2 {[%clk 0:03:01]}  b5 {[%clk 0:02:49]} 9. a4 {[%clk 0:03:00]}  bxa4 {[%clk 0:02:46]} 10. Nxa4 {[%clk 0:02:58]}  e6 {[%clk 0:02:46]} 11. Be2 {[%clk 0:02:57]}  Bb7 {[%clk 0:02:37]} 12. O-O {[%clk 0:02:57]}  d5 {[%clk 0:02:36]} 13. exd5 {[%clk 0:02:41]}  Nxd5 {[%clk 0:02:37]} 14. Bf2 {[%clk 0:02:41]}  Qc7 {[%clk 0:02:37]} 15. c4 {[%clk 0:02:37]}  Nf4 {[%clk 0:02:37]} 16. b4 {[%clk 0:02:22]}  Bd6 {[%clk 0:02:34]} 17. c5 {[%clk 0:02:06]}  Nxe2+ {[%clk 0:02:05]} 18. Qxe2 {[%clk 0:02:07]}  Bxh2+ {[%clk 0:02:06]} 19. Kh1 {[%clk 0:02:05]}  Be5 {[%clk 0:02:07]} 20. f4 {[%clk 0:01:44]}  Bxd4 {[%clk 0:02:01]} 21. Bxd4 {[%clk 0:01:45]}  Bc6 {[%clk 0:02:01]} 22. f5 {[%clk 0:01:34]}  e5 {[%clk 0:01:45]} 23. Nb6 {[%clk 0:01:18]}  Nxb6 {[%clk 0:01:40]} 24. cxb6 {[%clk 0:01:17]}  Qe7 {[%clk 0:01:41]} 25. Bc5 {[%clk 0:00:55]}  Qh4+ {[%clk 0:01:37]} 26. Kg1 {[%clk 0:00:53]}  f6 {[%clk 0:01:19]} 27. Rxa6 {[%clk 0:00:46]}  Qe4 {[%clk 0:01:15]} 28. Rxa8+ {[%clk 0:00:41]}  Bxa8 {[%clk 0:01:15]} 29. Qxe4 {[%clk 0:00:34]}  Bxe4 {[%clk 0:01:16]} 30. Ra1 {[%clk 0:00:34]}  Kd7 {[%clk 0:01:13]} 31. Ra7+ {[%clk 0:00:33]}  Kc6 {[%clk 0:01:14]} 32. Rxg7 {[%clk 0:00:31]}  Rd8 {[%clk 0:01:06]} 33. b7 {[%clk 0:00:22]}  Rb8 {[%clk 0:01:02]} 34. Kf2 {[%clk 0:00:09]}  Rxb7 {[%clk 0:01:02]} 35. Rxb7 {[%clk 0:00:05]}  Kxb7 {[%clk 0:01:03]} 36. Be7 {[%clk 0:00:06]}  Bxf5 {[%clk 0:01:03]} 37. Bxf6 {[%clk 0:00:07]}  e4 {[%clk 0:01:04]} 38. Be5 {[%clk 0:00:07]}  Kc6 {[%clk 0:01:04]} 39. Ke3 {[%clk 0:00:08]}  Kb5 {[%clk 0:01:05]} 40. Kf4 {[%clk 0:00:08]}  Bd7 {[%clk 0:01:02]} 41. Bd4 {[%clk 0:00:08]}  Kxb4 {[%clk 0:00:59]} 42. Kxe4 {[%clk 0:00:08]}  Bc6+ {[%clk 0:01:00]} 43. Kf4 {[%clk 0:00:08]}  Bxg2 {[%clk 0:01:01]} 44. Kg3 {[%clk 0:00:09]}  Bd5 {[%clk 0:01:01]} 45. Bg1 {[%clk 0:00:09]}  Kc4 {[%clk 0:01:01]} 46. Kh4 {[%clk 0:00:10]}  Bf7 {[%clk 0:01:01]} 47. Bh2 {[%clk 0:00:10]}  Kd5 {[%clk 0:01:01]} 48. Bf4 {[%clk 0:00:11]}  Ke4 {[%clk 0:01:02]} 49. Bg5 {[%clk 0:00:12]}  Kf5 {[%clk 0:01:02]} 50. Bd8 {[%clk 0:00:12]}  Kg6 {[%clk 0:01:02]} 51. Bg5 {[%clk 0:00:13]}  Be6 {[%clk 0:01:02]} 52. Bd8 {[%clk 0:00:14]}  Bd7 {[%clk 0:01:03]} 53. Bg5 {[%clk 0:00:15]}  Bc8 {[%clk 0:01:02]} 54. Bd8 {[%clk 0:00:15]}  Bd7 {[%clk 0:01:03]} 55. Bg5 {[%clk 0:00:16]}  Bc8 {[%clk 0:01:03]} 56. Bd8 {[%clk 0:00:17]}  Bd7 {[%clk 0:01:04]} 1/2-1/2


[Site "https://www.chess.com"]

[Event "Titled Tuesday Blitz July 4 Early 2023"]
[White "Lenderman, Aleksandr"]
[Black "Tifferet, Shaked"]
[WhiteFideId "2021285"]
[BlackFideId "2811529"]
[WhiteElo "2919"]
[BlackElo "2507"]
[Result "1-0"]
[Round "1"]
[TimeControl "180+2"]
[Date "2023.07.04"]
[WhiteClock "0:02:34"]
[BlackClock "0:01:10"]
[Board "29"]

1. Nf3 {[%clk 0:03:00]}  Nf6 {[%clk 0:02:58]} 2. c4 {[%clk 0:02:58]}  b6 {[%clk 0:02:57]} 3. g3 {[%clk 0:02:57]}  Bb7 {[%clk 0:02:58]} 4. Bg2 {[%clk 0:02:58]}  g6 {[%clk 0:02:58]} 5. O-O {[%clk 0:02:57]}  Bg7 {[%clk 0:02:59]} 6. d4 {[%clk 0:02:57]}  O-O {[%clk 0:02:59]} 7. d5 {[%clk 0:02:57]}  b5 {[%clk 0:02:52]} 8. Nfd2 {[%clk 0:02:52]}  a6 {[%clk 0:02:48]} 9. e4 {[%clk 0:02:51]}  d6 {[%clk 0:02:48]} 10. Nc3 {[%clk 0:02:48]}  c6 {[%clk 0:02:46]} 11. dxc6 {[%clk 0:02:45]}  Nxc6 {[%clk 0:02:47]} 12. Re1 {[%clk 0:02:42]}  bxc4 {[%clk 0:02:39]} 13. Nxc4 {[%clk 0:02:43]}  Na5 {[%clk 0:02:33]} 14. e5 {[%clk 0:02:37]}  dxe5 {[%clk 0:01:20]} 15. Qxd8 {[%clk 0:02:35]}  Rfxd8 {[%clk 0:01:14]} 16. Nxa5 {[%clk 0:02:36]}  Bxg2 {[%clk 0:01:14]} 17. Kxg2 {[%clk 0:02:36]}  Nd5 {[%clk 0:01:10]} 18. Nc6 {[%clk 0:02:34]} 1-0


[Site "https://www.chess.com"]

[Event "Titled Tuesday Blitz July 4 Early 2023"]
[White "Svane, Rasmus"]
[Black "Mica, Marek"]
[WhiteFideId "4657101"]
[BlackFideId "382884"]
[WhiteElo "2916"]
[BlackElo "2506"]
[Result "1-0"]
[Round "1"]
[TimeControl "180+2"]
[Date "2023.07.04"]
[WhiteClock "0:00:57"]
[BlackClock "0:00:13"]
[Board "31"]

1. Nf3 {[%clk 0:03:00]}  d5 {[%clk 0:02:59]} 2. g3 {[%clk 0:03:00]}  Nf6 {[%clk 0:02:57]} 3. Bg2 {[%clk 0:02:59]}  e6 {[%clk 0:02:57]} 4. O-O {[%clk 0:02:59]}  Be7 {[%clk 0:02:55]} 5. c4 {[%clk 0:02:57]}  O-O {[%clk 0:02:55]} 6. b3 {[%clk 0:02:56]}  c5 {[%clk 0:02:51]} 7. cxd5 {[%clk 0:02:55]}  exd5 {[%clk 0:02:51]} 8. d4 {[%clk 0:02:54]}  b6 {[%clk 0:02:51]} 9. Bb2 {[%clk 0:02:54]}  Re8 {[%clk 0:02:49]} 10. Nc3 {[%clk 0:02:52]}  Bf8 {[%clk 0:02:40]} 11. Rc1 {[%clk 0:02:52]}  Bb7 {[%clk 0:02:40]} 12. e3 {[%clk 0:02:50]}  Nbd7 {[%clk 0:02:39]} 13. Re1 {[%clk 0:02:51]}  Rc8 {[%clk 0:02:38]} 14. Re2 {[%clk 0:02:51]}  a6 {[%clk 0:02:33]} 15. dxc5 {[%clk 0:02:38]}  bxc5 {[%clk 0:02:29]} 16. Rec2 {[%clk 0:02:37]}  Bd6 {[%clk 0:02:18]} 17. Nh4 {[%clk 0:02:33]}  Nb6 {[%clk 0:02:12]} 18. Ne2 {[%clk 0:02:29]}  Ba8 {[%clk 0:02:04]} 19. Nf5 {[%clk 0:02:24]}  Bf8 {[%clk 0:02:04]} 20. Nf4 {[%clk 0:02:19]}  g6 {[%clk 0:02:00]} 21. Nh4 {[%clk 0:02:18]}  Ne4 {[%clk 0:01:48]} 22. Nf3 {[%clk 0:02:13]}  a5 {[%clk 0:01:37]} 23. Nd2 {[%clk 0:02:11]}  Nxd2 {[%clk 0:01:34]} 24. Qxd2 {[%clk 0:02:11]}  a4 {[%clk 0:01:35]} 25. h4 {[%clk 0:02:05]}  axb3 {[%clk 0:01:32]} 26. axb3 {[%clk 0:02:06]}  h5 {[%clk 0:01:22]} 27. Ba3 {[%clk 0:02:00]}  c4 {[%clk 0:01:17]} 28. Bxf8 {[%clk 0:01:59]}  Rxf8 {[%clk 0:01:18]} 29. Qd4 {[%clk 0:01:29]}  cxb3 {[%clk 0:01:07]} 30. Rxc8 {[%clk 0:01:30]}  Nxc8 {[%clk 0:01:07]} 31. Bxd5 {[%clk 0:01:20]}  b2 {[%clk 0:00:16]} 32. Rb1 {[%clk 0:01:08]}  Nb6 {[%clk 0:00:16]} 33. Nxg6 {[%clk 0:00:59]}  Kh7 {[%clk 0:00:13]} 34. Nxf8+ {[%clk 0:00:57]} 1-0


[Site "https://www.chess.com"]